bitfinex/quotes_ETHUSD_20260114
["timestamp","ask_amount","ask_price","bid_price","bid_amount"]
[1768384171053,0.97586507,3328.5,3328.0,6.00961538]
[1768384171542,0.002,3328.5,3328.0,6.00961538]
[1768384171850,0.002,3328.5,3328.0,7.7578117]
[1768384177050,0.002,3328.5,3328.1,1.00891084]
[1768384177355,0.413,3328.8,3328.1,1.00891084]
[1768384177550,0.413,3328.8,3328.0,6.77841979]
[1768384177551,1.0257627,3328.7,3328.0,6.77841979]
[1768384180231,0.413,3328.8,3328.1,1.00891084]
[1768384180430,0.413,3328.8,3328.1,2.08813056]
[1768384181360,0.413,3328.8,3328.2,1.00891084]
[1768384181961,0.413,3328.8,3328.3,3.00453685]
[1768384182161,0.413,3328.8,3328.3,4.01344769]
[1768384182540,0.413,3328.8,3328.4,1.00891084]
[1768384183655,3.41708927,3328.8,3328.4,1.00891084]
[1768384185655,0.413,3328.8,3328.4,4.01333265]
[1768384185843,0.413,3328.8,3328.4,1.00891084]
[1768384188678,3.41685108,3329.1,3328.5,1.00891084]
[1768384189080,0.413,3329.0,3328.5,1.00891084]
[1768384190376,3.41691483,3329.0,3328.5,1.00891084]
[1768384193072,0.413,3329.0,3328.6,1.00891084]
[1768384193656,3.41692263,3329.0,3328.6,1.00891084]
[1768384193974,3.41692263,3329.0,3328.4,3.00441625]
[1768384195379,0.002,3328.7,3328.3,3.00553685]
[1768384195675,4.44268533,3329.0,3328.4,0.70190487]
[1768384195969,4.44468533,3329.0,3328.3,3.00553685]
[1768384196372,1.0277627,3329.0,3328.3,7.01898454]
[1768384199274,0.002,3329.0,3328.4,1.00891084]
[1768384200984,0.0395443,3329.4,3328.9,1.00891084]
[1768384200985,0.002,3329.4,3328.9,1.00891084]
[1768384201372,0.002,3329.4,3329.0,4.01281591]
[1768384201549,0.002,3329.4,3329.0,1.00891084]
[1768384203784,0.002,3329.4,3329.1,3.00381484]
[1768384203953,0.002,3329.4,3329.0,4.01277722]
[1768384205188,0.002,3329.4,3329.0,1.00891084]
[1768384205396,0.002,3329.4,3328.9,3.00395605]
[1768384205579,0.002,3329.4,3328.8,3.00403524]
[1768384206088,0.002,3329.4,3328.6,7.0576382]
[1768384206278,0.002,3329.4,3328.7,0.74706382]
[1768384207478,0.002,3329.4,3328.7,1.79618184]
[1768384207860,0.95722423,3329.4,3328.7,0.74706382]
[1768384208060,0.002,3329.1,3328.7,0.74706382]
[1768384208255,0.002,3329.1,3328.8,3.00408555]
[1768384208461,0.95722423,3329.4,3328.9,0.67552665]
[1768384208789,0.95722423,3329.4,3328.8,3.00408555]
[1768384208993,0.95722423,3329.4,3328.8,6.0081711]
[1768384210190,0.95722423,3329.4,3328.7,6.0083516]
[1768384210965,0.95522423,3329.3,3328.7,3.0041758]
[1768384212297,0.95522423,3329.2,3328.5,3.00435384]
[1768384212591,0.95522423,3329.2,3328.3,0.001]
[1768384212592,0.95522423,3329.0,3328.4,3.00441917]
[1768384214199,0.95522423,3328.8,3328.3,0.001]
[1768384214386,0.95522423,3328.6,3328.3,0.001]
[1768384218502,0.413,3328.7,3328.3,0.001]
[1768384220700,0.413,3328.7,3328.6,0.001]
[1768384227308,0.03754994,3328.9,3328.6,0.001]
[1768384227609,0.413,3328.8,3328.6,0.001]
[1768384228209,0.43883715,3328.9,3328.6,0.001]
[1768384228377,0.413,3328.8,3328.6,0.001]
[1768384233523,0.413,3329.0,3328.9,0.001]
[1768384234302,0.415,3329.1,3328.9,0.001]
[1768384235086,3.41883929,3329.1,3328.9,0.001]
[1768384235493,3.41883929,3329.1,3328.6,0.001]
[1768384235494,4.06484368,3329.1,3328.6,0.001]
[1768384235694,4.06484368,3329.1,3328.6,1.00706586]
[1768384243850,7.06868297,3329.1,3328.6,1.00706586]
[1768384244355,1.10803238,3329.0,3328.1,1.00606586]
[1768384244642,0.97867728,3328.9,3328.1,1.00606586]
[1768384244836,0.03755106,3328.8,3328.1,1.00606586]
[1768384245005,0.413,3328.7,3328.1,1.00606586]
[1768384248233,4.39587022,3328.7,3328.0,3.0047856]
[1768384248536,4.39587022,3328.7,3328.1,3.00469993]
[1768384248715,3.41719294,3328.7,3328.1,4.01076579]
[1768384250519,3.41719294,3328.7,3327.9,1.00606586]
[1768384250719,4.39587022,3328.7,3327.9,1.00606586]
[1768384250919,5.14879414,3328.7,3327.9,1.00606586]
[1768384252043,2.1446012,3328.7,3327.9,1.00606586]
[1768384252445,5.14879731,3328.7,3327.9,1.00606586]
[1768384253243,2.1446012,3328.7,3328.0,3.00480769]
[1768384253818,5.1487923,3328.7,3328.0,3.00480769]
[1768384255545,4.39586838,3328.7,3328.0,3.00480769]
[1768384255729,1.39167728,3328.7,3328.0,6.00961538]
[1768384256125,3.41717883,3328.7,3328.0,4.01087355]
[1768384257146,0.413,3328.7,3328.0,4.01087355]
[1768384257948,1.39167728,3328.7,3328.0,3.00480769]
[1768384258247,1.39167728,3328.7,3328.0,6.00961538]
[1768384258446,0.97867728,3328.5,3327.3,1.90712776]
[1768384258653,0.09180629,3328.5,3327.9,3.0048897]
[1768384258829,0.09180629,3328.5,3328.2,0.001]
[1768384259029,0.002,3328.4,3328.2,0.001]
[1768384259230,0.002,3328.4,3327.9,4.01095556]
[1768384259430,0.002,3328.4,3328.0,1.00606586]
[1768384259648,0.09180629,3328.3,3327.8,3.00495562]
[1768384259820,0.09180629,3328.3,3327.8,1.00606586]
[1768384260022,0.09180629,3328.3,3327.9,1.00606586]
[1768384262953,0.002,3328.4,3328.0,1.00606586]
[1768384264452,3.00645851,3328.4,3328.0,1.00606586]
[1768384264626,0.09180629,3328.3,3327.7,0.001]
[1768384264824,0.09180629,3328.0,3327.7,0.001]
[1768384265024,3.09669238,3328.0,3327.2,4.01156107]
[1768384265228,6.49967339,3327.9,3327.2,1.00606586]
[1768384265442,7.8576663,3327.9,3327.2,1.00606586]
[1768384265753,0.09180629,3327.4,3327.0,1.04130506]
[1768384265941,0.09180629,3327.3,3326.8,1.04230506]
[1768384266143,0.09180629,3327.3,3326.8,0.001]
[1768384266829,0.15151008,3327.2,3326.8,0.001]
[1768384267157,3.15711863,3327.2,3326.8,0.001]
[1768384268140,4.16741316,3327.2,3326.8,0.001]
[1768384268342,1.10210082,3327.1,3326.8,0.001]
[1768384268655,0.09180629,3326.9,3326.5,0.001]
[1768384268828,0.58314166,3326.8,3326.5,0.001]
[1768384269028,0.09180629,3326.7,3326.2,0.0029097]
[1768384269223,0.413,3326.6,3326.2,0.0029097]
[1768384269451,1.01029453,3326.5,3326.2,0.0029097]
[1768384269854,1.01029453,3326.3,3325.4,1.04130506]
[1768384270035,6.49967339,3326.4,3325.4,4.04845079]
[1768384270036,2.17429132,3326.2,3325.4,4.04845079]
[1768384270238,1.42329453,3326.2,3325.4,4.04845079]
[1768384270559,1.01029453,3326.1,3325.4,4.04845079]
[1768384270931,1.01029453,3326.1,3325.5,3.00705976]
[1768384271127,1.01029453,3326.1,3325.3,3.00724746]
[1768384271333,1.01029453,3326.1,3325.3,6.01449492]
[1768384271751,0.413,3326.2,3325.4,1.04130506]
[1768384272258,0.413,3326.2,3325.5,1.04130506]
[1768384272460,3.41944955,3326.2,3325.5,1.04130506]
[1768384273461,0.413,3326.2,3325.6,3.00697618]
[1768384275456,0.413,3326.2,3325.6,1.04130506]
[1768384276666,3.41943583,3326.2,3325.6,1.04130506]
[1768384277165,3.41943583,3326.2,3325.5,3.0070666]
[1768384277663,3.41943583,3326.2,3325.5,4.04837166]
[1768384279348,5.17268175,3326.2,3325.5,3.0070666]
[1768384279752,5.17268175,3326.2,3325.4,4.04686335]
[1768384282849,5.17268175,3326.2,3325.4,7.05402038]
[1768384283352,5.17268175,3326.2,3325.7,0.001]
[1768384284052,0.03758155,3326.1,3325.7,0.001]
[1768384284258,0.52102633,3326.0,3325.7,0.001]
[1768384285354,5.21030211,3326.2,3325.7,0.001]
[1768384286392,2.20382634,3326.2,3325.7,0.001]
[1768384286694,5.21026216,3326.2,3325.7,0.001]
[1768384288164,2.20382634,3326.2,3325.7,0.001]
[1768384290581,5.21027718,3326.2,3325.7,0.001]
[1768384290784,0.52102772,3326.1,3325.7,0.001]
[1768384293979,3.52755306,3326.1,3325.7,0.001]
[1768384294191,4.53719852,3326.1,3325.4,3.00712776]
[1768384294785,1.00964546,3326.0,3325.4,3.00712776]
[1768384294966,0.45371985,3325.9,3325.2,4.04703773]
[1768384295290,0.413,3325.8,3325.3,3.00720323]
[1768384296189,0.413,3325.8,3325.7,0.001]
[1768384298187,3.41980441,3325.8,3325.3,3.00720323]
[1768384298404,0.413,3325.8,3325.3,3.00720323]
[1768384298593,3.41980063,3325.8,3325.3,3.00720323]
[1768384298890,4.11080876,3325.8,3325.2,3.0073203]
[1768384299188,1.10400813,3325.8,3325.2,3.0073203]
[1768384299396,4.11082356,3325.8,3325.2,3.0073203]
[1768384299796,1.10400813,3325.8,3325.2,3.0073203]
[1768384300868,4.11081567,3325.8,3325.2,3.0073203]
[1768384301781,0.56139381,3325.7,3325.2,3.0073203]
[1768384302794,0.56139381,3325.7,3325.1,4.00640079]
[1768384303088,3.56828092,3325.7,3325.1,3.00739446]
[1768384304003,1.0494026,3325.6,3325.1,3.00739446]
[1768384304187,0.56139381,3325.7,3325.1,3.00739446]
[1768384305303,3.56829179,3325.7,3325.0,3.00750255]
[1768384305497,1.0494026,3325.6,3325.0,3.00750255]
[1768384305710,1.0869898,3325.6,3325.0,3.00750255]
[1768384306010,0.91245106,3325.6,3325.0,3.00750255]
[1768384307473,0.91245106,3325.6,3325.0,0.99900633]
[1768384308581,3.56829179,3325.7,3325.0,0.99900633]
[1768384309115,3.56829179,3325.7,3325.3,0.001]
[1768384319093,6.57522499,3325.7,3325.3,0.001]
[1768384320028,7.62462759,3325.7,3325.3,0.001]
[1768384320234,0.0375872,3325.6,3325.3,0.001]
[1768384320516,0.76622148,3325.5,3325.3,0.001]
[1768384321010,0.414,3325.4,3325.3,0.001]
[1768384321893,3.42115703,3325.4,3325.3,0.001]
[1768384323811,0.414,3325.4,3325.3,0.001]
[1768384324133,1.0494026,3325.2,3323.7,0.99900633]
[1768384324302,1.0494026,3325.2,3324.2,0.99900633]
[1768384324836,1.0494026,3325.2,3324.2,4.00724024]
[1768384325244,1.0494026,3325.2,3323.7,0.95919085]
[1768384325245,1.02872496,3325.0,3323.7,0.95919085]
[1768384325399,1.02872496,3324.8,3323.8,3.00859975]
[1768384326117,1.02872496,3324.6,3323.7,3.96788597]
[1768384326307,1.02872496,3324.6,3323.7,6.97658109]
[1768384326637,1.73315549,3324.6,3323.8,0.95919085]
[1768384326848,1.02872496,3324.6,3323.8,0.95919085]
[1768384327004,3.00779017,3324.7,3323.8,0.95919085]
[1768384327204,7.0443053,3324.7,3323.8,0.95919085]
[1768384327404,0.414,3324.6,3323.8,0.95919085]
[1768384327840,1.02872496,3324.5,3323.7,6.01739024]
[1768384328138,1.02872496,3324.5,3323.4,6.01793344]
[1768384328139,1.02872496,3324.4,3323.4,6.01793344]
[1768384328303,3.00802497,3324.5,3322.6,6.61344494]
[1768384328304,1.02872496,3323.9,3322.8,0.39152893]
[1768384328636,0.414,3323.8,3322.9,0.95919085]
[1768384329005,0.56745313,3323.8,3322.9,0.95919085]
[1768384329203,0.56745313,3323.8,3323.0,0.95919085]
[1768384329204,1.59617809,3323.8,3323.0,0.95919085]
[1768384329823,1.02872496,3323.7,3322.8,4.36016998]
[1768384330074,1.02872496,3323.7,3322.8,0.39152893]
[1768384330242,1.02872496,3323.5,3322.8,3.40098708]
[1768384330430,1.02872496,3323.5,3322.8,6.41049713]
[1768384330630,0.414,3323.4,3322.8,6.41049713]
[1768384330840,0.414,3323.4,3322.8,3.40098708]
[1768384331277,1.44272496,3323.4,3322.8,3.40098708]
[1768384331574,1.02872496,3323.3,3322.8,0.39152893]
[1768384332130,1.02872496,3323.2,3322.8,0.39152893]
[1768384332360,0.44518687,3323.2,3322.8,0.39152893]
[1768384333746,0.44518687,3323.2,3322.9,0.95919085]
[1768384333951,1.02872496,3323.1,3322.8,0.39152893]
[1768384335755,1.02872496,3323.1,3322.8,3.40103535]
[1768384336461,0.414,3323.2,3322.8,1.35071978]
[1768384336663,0.414,3323.2,3322.8,0.39152893]
[1768384337266,0.414,3323.2,3322.8,1.35071978]
[1768384337589,0.414,3323.2,3322.9,0.95919085]
[1768384338853,0.03761208,3323.4,3323.0,0.99520776]
[1768384339174,0.414,3323.1,3322.8,4.39622313]
[1768384339377,0.414,3323.1,3322.9,0.99520776]
[1768384340069,0.34074455,3323.1,3322.9,4.0046101]
[1768384340582,0.34074455,3323.1,3322.9,0.99520776]
[1768384341341,0.414,3323.2,3322.9,0.99520776]
[1768384350881,0.414,3323.1,3322.9,0.99520776]
[1768384351883,0.414,3323.1,3322.8,0.39152893]
[1768384352755,0.414,3323.1,3322.8,1.38673669]
[1768384352956,0.414,3323.1,3322.8,0.39152893]
[1768384353679,0.414,3323.0,3322.8,0.39152893]
[1768384358566,0.09180629,3323.2,3322.8,0.39152893]
[1768384359069,0.414,3323.1,3322.8,0.39152893]
[1768384361891,0.09180629,3323.2,3322.8,0.39152893]
[1768384362089,0.414,3323.1,3322.8,0.39152893]
[1768384362672,0.09180629,3323.2,3322.8,1.41668707]
[1768384362874,0.414,3323.0,3322.8,1.41668707]
[1768384363374,0.414,3322.9,3322.8,1.41668707]
[1768384363787,3.04652242,3323.5,3322.9,1.02515814]
[1768384363989,0.414,3323.4,3322.9,1.02515814]
[1768384364188,0.50580629,3323.4,3322.9,1.02515814]
[1768384364995,3.10080469,3323.4,3322.9,1.02515814]
[1768384365201,0.414,3323.3,3322.9,1.02515814]
[1768384367587,0.414,3323.2,3322.9,1.02515814]
[1768384367765,0.414,3323.1,3322.9,1.02515814]
[1768384367962,0.414,3323.0,3322.9,1.02515814]
[1768384368167,0.09180629,3323.5,3322.9,1.02515814]
[1768384368363,0.09180629,3323.3,3322.9,1.02515814]
[1768384368694,0.414,3323.2,3322.9,1.02515814]
[1768384371596,3.10070855,3323.5,3322.9,1.02515814]
[1768384371597,0.414,3323.1,3323.0,1.02515814]
[1768384371805,0.36888535,3323.1,3323.0,1.02515814]
[1768384372003,0.414,3323.1,3323.0,1.02515814]
[1768384375501,0.414,3323.1,3322.8,1.41668707]
[1768384375877,0.414,3323.2,3322.9,1.02515814]
[1768384377412,0.414,3323.2,3322.8,0.39152893]
[1768384377583,0.414,3323.2,3322.8,0.8341501]
[1768384378912,0.414,3323.2,3322.8,3.84365368]
[1768384379100,0.414,3323.2,3322.8,4.86881182]
[1768384380091,3.10008008,3324.2,3322.8,4.86881182]
[1768384380092,0.99154311,3324.0,3323.0,13.03610506]
[1768384380299,0.414,3324.0,3323.6,1.02515814]
[1768384380808,0.414,3324.0,3323.2,1.02515814]
[1768384381116,0.414,3324.0,3323.3,4.0342154]
[1768384381414,0.50580629,3324.0,3323.3,4.0342154]
[1768384382181,0.28175878,3323.9,3323.3,4.0342154]
[1768384382412,0.28175878,3323.9,3323.4,0.40342154]
[1768384383209,0.99154311,3323.8,3323.4,0.40342154]
[1768384383380,0.28175878,3323.9,3323.4,0.40342154]
[1768384383586,0.99154311,3323.7,3323.1,3.00918167]
[1768384383798,0.414,3323.6,3323.1,3.00918167]
[1768384384106,0.99154311,3323.5,3322.8,0.8341501]
[1768384384304,0.99154311,3323.5,3322.8,3.40097371]
[1768384384513,0.99154311,3323.5,3322.9,3.00939603]
[1768384384920,0.99154311,3323.5,3323.0,3.00932353]
[1768384385103,0.002,3323.6,3323.4,0.414]
[1768384385305,0.002,3323.6,3323.3,4.06545986]
[1768384385306,0.414,3323.4,3323.3,4.06545986]
[1768384385607,0.414,3323.5,3323.3,3.00899328]
[1768384386312,0.414,3323.5,3323.0,1.05646658]
[1768384386489,0.414,3323.5,3323.1,0.70753055]
[1768384386809,0.416,3323.6,3323.3,1.05646658]
[1768384386996,0.416,3323.6,3323.2,1.05646658]
[1768384387598,0.416,3323.6,3322.9,3.00941948]
[1768384387599,0.09180629,3323.5,3322.9,3.00941948]
[1768384388484,0.09180629,3323.5,3322.9,4.06588606]
[1768384388983,0.09180629,3323.5,3322.9,3.00941948]
[1768384389915,0.416,3323.6,3322.9,4.06588606]
[1768384390102,0.416,3323.6,3323.0,1.05646658]
[1768384390301,0.414,3323.5,3323.0,1.05646658]
[1768384390906,0.002,3323.6,3323.0,1.05646658]
[1768384391086,0.414,3323.4,3322.9,3.00941948]
[1768384392712,1.07437144,3323.6,3322.9,4.06588606]
[1768384392917,0.414,3323.3,3322.9,4.06588606]
[1768384393120,0.414,3323.3,3322.9,3.00941948]
[1768384393494,0.34384452,3323.3,3322.9,6.01883896]
[1768384393815,0.414,3323.4,3323.0,1.05646658]
[1768384394201,0.414,3323.4,3323.1,6.01847672]
[1768384394396,0.002,3323.6,3323.2,1.05646658]
[1768384394603,0.416,3323.6,3323.2,1.05646658]
[1768384395693,0.002,3323.6,3323.2,1.05646658]
[1768384396221,0.002,3323.6,3323.2,4.06554418]
[1768384396800,0.002,3323.6,3323.2,3.0090776]
[1768384397613,0.002,3323.6,3323.2,3.0100776]
[1768384399218,0.002,3323.6,3323.3,0.99724215]
[1768384399419,3.01051475,3323.9,3323.3,0.99724215]
[1768384399420,0.002,3323.9,3323.3,0.99724215]
[1768384399622,0.416,3323.9,3323.3,0.99724215]
[1768384401424,0.416,3323.9,3323.4,6.01793344]
[1768384401615,0.002,3323.9,3323.5,0.99724215]
[1768384401816,0.416,3323.9,3323.5,0.99724215]
[1768384403307,0.416,3323.9,3323.4,3.00896672]
[1768384403626,0.416,3323.9,3323.4,0.99724215]
[1768384404320,0.002,3323.9,3323.4,0.99724215]
[1768384404525,0.002,3323.9,3323.3,6.01809743]
[1768384404910,0.002,3323.9,3323.3,7.01533958]
[1768384405407,0.002,3323.9,3323.3,7.78773136]
[1768384405607,0.002,3323.9,3323.3,6.79048921]
[1768384405826,0.002,3323.9,3323.3,7.78773136]
[1768384406032,0.09180629,3323.8,3323.3,3.00904017]
[1768384406825,1.09845543,3323.8,3323.2,0.001]
[1768384408115,1.00664914,3323.8,3323.2,0.001]
[1768384410214,1.00664914,3323.8,3323.5,0.001]
[1768384410620,0.002,3323.6,3323.5,0.001]
[1768384411240,1.00864914,3323.6,3323.5,0.001]
[1768384412708,0.002,3323.6,3323.5,0.001]
[1768384413838,1.00664914,3323.8,3323.5,0.001]
[1768384414205,0.002,3323.9,3323.5,0.001]
[1768384414542,1.00864914,3323.9,3323.5,0.001]
[1768384415358,1.13432583,3323.7,3323.5,0.001]
[1768384416142,0.414,3323.8,3323.5,0.001]
[1768384418752,1.13432583,3323.7,3323.5,0.001]
[1768384419549,1.22613212,3323.6,3323.5,0.001]
[1768384422351,0.09180629,3323.6,3323.5,0.001]
[1768384425154,3.60308502,3323.8,3323.5,0.001]
[1768384425356,0.414,3323.7,3323.5,0.001]
[1768384427139,0.46505685,3323.8,3323.5,0.001]
[1768384427452,0.414,3323.7,3323.5,0.001]
[1768384428018,0.414,3323.8,3323.5,0.001]
[1768384429151,0.50580629,3323.8,3323.5,0.001]
[1768384429856,4.14484007,3323.9,3323.5,0.001]
[1768384430037,0.414,3323.8,3323.5,0.001]
[1768384431030,0.50580629,3323.8,3323.5,0.001]
[1768384432059,0.98005189,3323.8,3323.5,0.001]
[1768384437054,0.4742456,3323.8,3323.5,0.001]
[1768384437359,0.8882456,3323.8,3323.5,0.001]
[1768384439758,3.89687083,3323.8,3323.5,0.001]
[1768384439960,3.98867712,3323.8,3323.5,0.001]
[1768384440758,0.98005189,3323.8,3323.5,0.001]
[1768384441877,0.56605189,3323.8,3323.5,0.001]
[1768384442165,0.09180629,3323.8,3323.5,0.001]
[1768384443570,3.10042077,3323.8,3323.5,0.001]
[1768384444166,0.09180629,3323.8,3323.5,0.001]
[1768384444870,3.10042024,3323.8,3323.5,0.001]
[1768384445459,4.18634766,3323.8,3323.5,0.001]
[1768384445770,4.95661511,3323.8,3323.5,0.001]
[1768384447053,5.37061511,3323.8,3323.5,0.001]
[1768384447569,4.28468769,3323.8,3323.5,0.001]
[1768384450782,4.1928814,3323.8,3323.5,0.001]
[1768384450983,0.414,3323.8,3323.5,0.001]
[1768384453794,3.010551,3323.9,3323.5,0.001]
[1768384453948,0.414,3323.8,3323.5,0.001]
[1768384457788,0.416,3323.9,3323.5,1.15541283]
[1768384457996,0.002,3323.9,3323.5,1.15541283]
[1768384458695,0.002,3323.9,3323.5,3.00987255]
[1768384459054,0.002,3323.9,3323.5,0.001]
[1768384460191,0.002,3323.9,3323.5,3.00986714]
[1768384460690,0.002,3323.9,3323.5,0.001]
[1768384463287,0.002,3323.9,3323.5,1.13734057]
[1768384463693,0.002,3323.9,3323.5,0.001]
[1768384463991,0.30304077,3323.9,3323.5,0.001]
[1768384465680,3.31156392,3323.9,3323.5,0.001]
[1768384466299,1.18878059,3323.8,3323.5,0.001]
[1768384466803,1.60278059,3323.8,3323.5,0.001]
[1768384466999,0.50580629,3323.8,3323.5,0.001]
[1768384467702,5.41661008,3323.8,3323.5,0.001]
[1768384468400,4.31963266,3323.8,3323.5,0.001]
[1768384472303,0.002,3323.6,3323.5,0.001]
[1768384481611,3.010559,3323.9,3323.5,0.001]
[1768384481612,0.002,3323.9,3323.5,0.001]
[1768384481811,0.416,3323.9,3323.5,0.001]
[1768384484924,0.002,3323.6,3323.5,0.001]
[1768384485128,0.416,3323.9,3323.5,0.001]
[1768384485623,0.09180629,3323.8,3323.5,0.001]
[1768384486890,3.46214878,3323.9,3323.5,0.001]
[1768384487902,3.42454236,3323.9,3323.5,0.001]
[1768384488225,3.46214878,3323.9,3323.5,0.001]
[1768384488726,1.24921569,3323.8,3322.9,1.11600195]
[1768384489027,0.09180629,3323.8,3323.1,3.00919301]
[1768384489417,0.09180629,3323.8,3323.2,3.00914719]
[1768384489616,0.414,3323.7,3323.3,3.00905402]
[1768384489817,0.414,3323.7,3323.3,4.12505597]
[1768384490022,0.414,3323.8,3323.4,1.11600195]
[1768384490909,0.416,3323.9,3323.4,1.11600195]
[1768384491910,0.002,3323.9,3323.4,7.13387097]
[1768384492111,0.416,3323.9,3323.5,1.11600195]
[1768384492718,0.09180629,3323.6,3323.0,1.11600195]
[1768384493030,0.09180629,3323.6,3323.0,1.60910549]
[1768384493599,0.09180629,3323.6,3323.0,4.61837753]
[1768384494001,0.09180629,3323.6,3323.1,1.11600195]
[1768384494326,3.10060057,3323.6,3323.1,4.12523031]
[1768384494525,3.10060057,3323.6,3323.1,1.11600195]
[1768384496842,3.10060057,3323.6,3323.4,0.001]
[1768384497338,3.10260057,3323.6,3323.4,0.001]
[1768384497703,0.09380629,3323.6,3323.4,0.001]
[1768384498671,3.10260156,3323.6,3323.4,0.001]
[1768384499034,1.24921569,3323.2,3322.8,0.39152893]
[1768384499234,0.36888626,3323.1,3322.8,0.39152893]
[1768384500110,0.09180629,3323.4,3322.8,1.50753088]
[1768384500311,0.414,3323.3,3322.8,1.50753088]
[1768384502039,3.0091478,3323.2,3322.8,1.50753088]
[1768384502537,3.0091478,3323.2,3322.8,0.39152893]
[1768384503845,3.04676214,3323.2,3322.8,0.39152893]
[1768384505142,3.0091239,3323.3,3322.8,1.61762755]
[1768384505627,0.414,3323.2,3322.8,4.62713548]
[1768384506309,0.414,3323.2,3322.8,1.61762755]
[1768384507844,0.03761208,3323.4,3322.8,4.62712169]
[1768384508044,3.04663192,3323.4,3322.9,1.22609862]
[1768384508235,0.414,3323.3,3322.9,1.22609862]
[1768384509246,0.414,3323.3,3323.1,0.001]
[1768384510850,0.03761208,3323.4,3323.1,0.001]
[1768384511152,0.002,3323.6,3323.1,1.22709862]
[1768384512128,3.01078828,3323.6,3323.1,1.22709862]
[1768384513147,0.002,3323.6,3323.1,1.65075043]
[1768384514340,0.002,3323.6,3323.1,1.22709862]
[1768384514817,0.002,3323.6,3323.1,0.001]
[1768384515956,0.002,3323.6,3323.1,1.22709862]
[1768384516119,0.416,3323.9,3323.4,1.22609862]
[1768384516447,0.002,3323.9,3323.1,1.22709862]
[1768384516748,0.002,3323.9,3323.3,1.22609862]
[1768384516950,0.002,3323.9,3323.5,1.22609862]
[1768384519047,0.002,3323.9,3323.6,1.19021422]
[1768384520972,0.414,3324.4,3323.7,3.00869512]
[1768384521187,0.414,3324.4,3323.8,1.19021422]
[1768384521366,0.414,3324.4,3323.9,0.72076045]
[1768384521738,0.414,3324.5,3323.9,1.91097467]
[1768384522471,4.2368517,3324.8,3324.0,1.19021422]
[1768384522647,1.22913417,3324.8,3324.0,1.19021422]
[1768384522850,0.414,3324.7,3324.0,1.19021422]
[1768384523246,0.414,3324.7,3324.1,3.00833308]
[1768384525340,1.22913417,3324.8,3324.1,3.00833308]
[1768384525540,0.414,3324.7,3324.1,3.00833308]
[1768384526279,1.22913417,3324.8,3324.1,3.00833308]
[1768384526578,0.414,3324.7,3324.1,7.20688038]
[1768384527075,0.414,3324.8,3324.2,1.19021422]
[1768384527239,0.414,3324.8,3324.4,1.19021422]
[1768384527777,3.10107613,3325.3,3324.4,1.19021422]
[1768384527778,1.22913417,3325.1,3324.4,1.19021422]
[1768384527944,4.33022806,3325.3,3324.4,1.19021422]
[1768384528145,0.414,3325.2,3324.4,1.19021422]
[1768384528346,0.414,3325.1,3324.4,1.19021422]
[1768384528647,3.10109389,3325.3,3324.4,1.19021422]
[1768384528846,0.414,3325.2,3324.4,1.19021422]
[1768384529045,0.414,3325.1,3324.4,1.19021422]
[1768384529266,0.414,3325.1,3324.5,4.19818534]
[1768384530972,4.8583984,3325.3,3324.5,4.19818534]
[1768384531172,0.414,3325.2,3324.6,4.19802115]
[1768384533281,3.04670409,3325.3,3324.6,4.19802115]
[1768384533480,0.414,3325.2,3324.6,4.19802115]
[1768384534354,0.414,3325.2,3324.7,1.19021422]
[1768384534561,0.002,3324.9,3324.7,1.19021422]
[1768384534880,1.64513417,3325.2,3324.6,6.01568757]
[1768384535280,0.416,3325.2,3324.6,7.25847274]
[1768384535669,0.416,3325.2,3324.6,4.2505921]
[1768384535866,0.002,3325.2,3324.7,1.24278517]
[1768384537486,0.002,3325.2,3324.8,3.00769971]
[1768384537986,0.002,3325.2,3324.8,4.25048488]
[1768384540386,0.002,3325.2,3324.8,7.25818459]
[1768384540584,0.002,3325.2,3324.9,1.24278517]
[1768384540760,0.002,3325.3,3324.9,1.24278517]
[1768384541556,0.002,3325.3,3325.1,1.24278517]
[1768384545995,0.002,3325.3,3325.1,4.25019766]
[1768384546586,0.002,3325.3,3325.1,1.24278517]
[1768384547094,0.002,3325.3,3325.0,3.00749149]
[1768384547391,0.002,3325.3,3325.1,4.25020369]
[1768384547808,0.002,3325.3,3325.0,3.00747757]
[1768384549624,0.002,3325.3,3325.1,3.00741349]
[1768384549826,0.002,3325.3,3324.9,1.24278517]
[1768384550524,0.002,3325.3,3324.9,3.00757415]
[1768384550825,0.002,3325.3,3324.8,3.00766525]
[1768384551978,1.19317071,3325.3,3324.7,3.00779017]
[1768384554426,1.19317071,3325.3,3324.5,6.01594224]
[1768384554607,1.19317071,3325.3,3324.6,2.01005791]
[1768384556126,0.002,3325.3,3324.7,3.00779017]
[1768384556428,0.002,3325.3,3324.7,7.25836551]
[1768384556723,0.002,3325.3,3324.7,4.25057534]
[1768384557230,3.00924824,3325.3,3324.7,4.25057534]
[1768384557606,0.002,3325.3,3324.7,4.25057534]
[1768384558122,0.002,3325.3,3324.7,7.25836551]
[1768384558325,0.002,3325.3,3324.7,8.06092934]
[1768384559994,0.002,3325.3,3324.8,1.24278517]
[1768384561028,0.002,3325.3,3325.0,0.001]
[1768384565138,0.002,3325.3,3325.0,1.19143936]
[1768384565641,0.002,3325.3,3325.0,0.001]
[1768384566627,0.002,3325.3,3325.0,3.0084964]
[1768384567737,0.002,3325.3,3325.0,0.001]
[1768384580924,1.98930707,3325.3,3325.0,0.001]
[1768384581456,3.75331786,3325.3,3325.0,0.001]
[1768384582559,0.74601164,3325.3,3325.0,0.001]
[1768384582758,0.002,3325.3,3325.0,0.001]
[1768384584662,0.09380629,3325.3,3325.0,0.001]
[1768384588879,3.10105518,3325.3,3325.0,0.001]
[1768384590285,0.09380629,3325.3,3325.0,0.001]
[1768384592085,0.002,3325.3,3325.0,0.001]
[1768384592599,0.416,3325.3,3325.0,0.001]
[1768384595790,0.002,3325.3,3325.0,0.001]
[1768384595959,0.416,3325.3,3325.0,0.001]